lending/lending_fUSD_20250323
["ID","MTS","AMOUNT","RATE_DAILY","PERIOD"]
[356584514,1742733031584,-494.40795176,0.00011445,2]
[356584515,1742733031593,-127.25804551,0.00011454,2]
[356584516,1742733031683,-22.74195449,0.00011454,2]
[356584517,1742733031693,-634.17,0.00011454,2]
[356584518,1742733031702,-436.55961127,0.00011455,2]
[356584519,1742733031714,-370.76858744,0.00011455,2]
[356584522,1742733034565,-378.8412628,0.00011038,2]
[356584523,1742733037408,-621.1587372,0.00011038,2]
[356584524,1742733037418,-277.0102628,0.00011455,2]
[356584525,1742733037630,-459.70917789,0.00011455,2]
[356584526,1742733037641,-1052.79861692,0.00011455,2]
[356584539,1742733039650,-489.02497615,0.00011455,2]
[356584540,1742733039768,-154699.42995753,0.00011455,2]
[356584541,1742733039778,-250.0,0.00011494,2]
[356584542,1742733039787,-2751.0,0.00011507,2]
[356584543,1742733039797,-202.1683602,0.0001164,2]
[356584544,1742733039807,-434.66918734,0.00011644,2]
[356584545,1742733039816,-500.0,0.00011673,2]
[356584546,1742733039827,-210.0,0.00011753,2]
[356584547,1742733039837,-1606.82,0.00011777,2]
[356584548,1742733039847,-1915.652,0.00011853,2]
[356584549,1742733039856,-168.394,0.00011853,2]
[356584550,1742733039865,-1000.0,0.00011895,2]
[356584551,1742733039875,-449.5644,0.000119,2]
[356584552,1742733039884,-60.3278195,0.000119,2]
[356584563,1742733042509,-559.9496805,0.000119,2]
[356584564,1742733042519,-2281.3502895,0.000119,2]
[356584565,1742733045701,-372.02649611,0.000119,2]
[356584571,1742733109964,-181.19713606,0.00011,2]
[356584572,1742733325404,-68.80286394,0.00011,2]
[356584573,1742733325427,-228.09329006,0.00011064,2]
[356584574,1742733483684,-202.45,0.00011017,2]
[356584575,1742733489224,-150.0,0.00011015,2]
[356584576,1742733530017,78299.32281561,0.00011015,5]
[356584577,1742733530043,58183.55296709,0.00011015,5]
[356584578,1742733530671,153.76,8.796e-05,2]
[356584579,1742733842113,-200.0,0.00010947,2]
[356584580,1742733842137,-31.84528,0.00010978,2]
[356584583,1742733981524,-181.19713606,0.00010917,2]
[356584584,1742733981546,-112.08822016,0.00010976,2]
[356584586,1742734018205,-179.87709353,0.0001091,2]
[356584595,1742734037239,829.223247,0.00010855,2]
[356584600,1742734082767,-70.12290647,0.0001091,2]
[356584601,1742734082789,-229.87709353,0.00010975,2]
[356584602,1742734091650,-168.48,0.0001091,2]
[356584603,1742734144099,-250.00582104,0.0001091,2]
[356584605,1742734200459,200.0,0.00010825,2]
[356584606,1742734202546,-174.05445656,0.0001091,2]
[356584610,1742734231707,-407.4597224,0.0001091,2]
[356584611,1742734231717,-300.0,0.00010975,2]
[356584612,1742734231727,-11277.19177984,0.00010976,2]
[356584613,1742734231737,-347.00472,0.00010978,2]
[356584614,1742734231746,-2151.65,0.00011015,2]
[356584615,1742734231756,-1797.55,0.00011017,2]
[356584616,1742734231765,-2024.70670994,0.00011064,2]
[356584617,1742734231774,-583.5,0.0001112,2]
[356584618,1742734231784,-150.0,0.00011178,2]
[356584619,1742734231793,-265.13,0.0001118,2]
[356584620,1742734231803,-406.83,0.00011193,2]
[356584621,1742734231813,-150.0,0.00011202,2]
[356584622,1742734231823,-2581.92,0.00011507,2]
[356584623,1742734231832,-500.0,0.00011562,2]
[356584624,1742734231842,-191.8696193,0.0001164,2]
[356584625,1742734231851,-434.66918734,0.00011724,2]
[356584626,1742734231860,-150.0,0.00011753,2]
[356584627,1742734231870,-1000.0,0.000118,2]
[356584628,1742734231879,-500.0,0.000118,2]
[356584629,1742734231889,-265.13,0.00011802,2]
[356584630,1742734231898,-1658.595,0.00011899,2]
[356584631,1742734231907,-150.0,0.00011899,2]
[356584632,1742734231917,-168.39573484,0.00011899,2]
[356584633,1742734231927,-500.0,0.00011899,2]
[356584634,1742734231936,-500.0,0.00011899,2]
[356584635,1742734231946,-11316.263,0.000119,2]
[356584636,1742734232125,-200.0,0.00011904,2]
[356584637,1742734232136,-198.68554461,0.00011973,2]
[356584638,1742734232146,-419.17413432,0.0001198,2]
[356584639,1742734232155,-151.78,0.00011987,2]
[356584640,1742734232165,-512.98,0.00011987,2]
[356584641,1742734232175,-644.278,0.0001199,2]
[356584642,1742734232184,-2037.46,0.0001199,2]
[356584643,1742734232193,-1281.0,0.0001199,2]
[356584644,1742734232203,-655.111,0.0001199,2]
[356584645,1742734232213,-1420.0,0.0001199,2]
[356584646,1742734232223,-791.0,0.0001199,2]
[356584647,1742734232233,-1273.0,0.0001199,2]
[356584648,1742734232242,-907.0,0.0001199,2]
[356584649,1742734232252,-1453.035,0.0001199,2]
[356584650,1742734232262,-544.794,0.0001199,2]
[356584651,1742734232272,-4085.0,0.0001199,2]
[356584652,1742734232281,-1014.0,0.0001199,2]
[356584653,1742734232291,-151.0,0.0001199,2]
[356584654,1742734232301,-3941.0,0.0001199,2]
[356584655,1742734232310,-150.0,0.00012,2]
[356584656,1742734232320,-1605.39750299,0.00012,2]
[356584657,1742734232330,-4999.99999901,0.00012,2]
[356584658,1742734232338,-33829.33060815,0.00012,2]
[356584659,1742734232350,-1337.80851024,0.00012,2]
[356584660,1742734232455,-1248.674,0.00012,2]
[356584661,1742734232636,-773.44489308,0.00012,2]
[356584664,1742734237604,-191.8696193,0.0001164,2]
[356584665,1742734237615,-1000.0,0.000119,2]
[356584666,1742734237626,-14344.69942293,0.000119,2]
[356584678,1742734240011,-1482.45,0.00011852,2]
[356584679,1742734240022,-32480.5045211,0.000119,2]
[356584689,1742734245745,-39941.79799994,0.000119,2]
[356584690,1742734245754,-2500.0,0.000119,2]
[356584691,1742734245764,-225460.52863237,0.00012,2]
[356584692,1742734245799,-2003.67650328,0.00012,2]
[356584693,1742734245811,-1721.238,0.00012,2]
[356584697,1742734278920,203.34326652,0.00031675,120]
[356585115,1742734545445,1013.26663945,0.00031675,30]
[356585116,1742734945923,-150.0,0.00011,2]
[356585129,1742735384728,234.63370968,9.048e-05,2]
[356585130,1742735384750,1457.49629032,9.048e-05,2]
[356585131,1742735410858,-168.48,0.00010929,2]
[356585132,1742735425383,-247.159,0.00010859,2]
[356585137,1742735431767,-641.82964109,0.00010859,2]
[356585138,1742735431778,-706.29087696,0.00010859,2]
[356585139,1742735431825,-140.96048195,0.00010859,2]
[356585140,1742735431835,-43.62,0.00010929,2]
[356585141,1742735431844,-100.0,0.00011,2]
[356585142,1742735431853,-150.0,0.00011032,2]
[356585143,1742735431863,-150.0,0.00011049,2]
[356585144,1742735431873,-150.0,0.00011059,2]
[356585145,1742735431883,-1000.0,0.00011111,2]
[356585146,1742735431893,-200.0,0.00011117,2]
[356585147,1742735431903,-250.0,0.00011132,2]
[356585148,1742735431913,-1692.13,0.00011312,2]
[356585149,1742735431922,-300.0,0.0001135,2]
[356585150,1742735431931,-29312.99,0.00011351,2]
[356585151,1742735431941,-164.68,0.00011444,2]
[356585152,1742735431950,-434.66918734,0.00011529,2]
[356585153,1742735431959,-212.1,0.00011536,2]
[356585154,1742735431968,-500.0,0.00011614,2]
[356585155,1742735431982,-302.03340478,0.00011614,2]
[356585156,1742735431991,-191.8696193,0.0001164,2]
[356585157,1742735432001,-1399.19,0.00011699,2]
[356585158,1742735432010,-525.13,0.00011863,2]
[356585159,1742735432020,-150.0,0.00011899,2]
[356585160,1742735432030,-542.0,0.000119,2]
[356585161,1742735432039,-1430.0,0.000119,2]
[356585162,1742735432049,-4085.0,0.000119,2]
[356585163,1742735432060,-907.0,0.000119,2]
[356585164,1742735432070,-78090.30174951,0.000119,2]
[356585165,1742735432079,-416.65276654,0.000119,2]
[356585166,1742735432088,-166.03096228,0.000119,2]
[356585167,1742735432097,-2500.0,0.000119,2]
[356585168,1742735432107,-1014.0,0.000119,2]
[356585169,1742735432117,-3941.0,0.000119,2]
[356585170,1742735432126,-151.0,0.000119,2]
[356585171,1742735432135,-200.0,0.00011904,2]
[356585172,1742735432145,-200.0,0.00011945,2]
[356585173,1742735432154,-1326.876,0.00011999,2]
[356585174,1742735432164,-1722.4223217,0.00011999,2]
[356585175,1742735432173,-21542.0151303,0.00011999,2]
[356585176,1742735432182,-12355.6246257,0.00011999,2]
[356585177,1742735432192,-14503.8995065,0.00011999,2]
[356585178,1742735432201,-361301.89409115,0.00012,2]
[356585179,1742735432210,-198.35,0.00012,2]
[356585180,1742735432219,-150.0,0.00012,2]
[356585181,1742735432229,-150.0,0.00012,2]
[356585182,1742735432238,-153.165,0.00012,2]
[356585183,1742735432247,-281.885,0.00012,2]
[356585184,1742735432255,-150.0,0.00012,2]
[356585185,1742735432264,-563.40994113,0.00012,2]
[356585186,1742735432274,-500.0,0.00012,2]
[356585187,1742735432283,-500.0,0.00012,2]
[356585188,1742735432292,-500.0,0.00012,2]
[356585189,1742735432301,-500.0,0.00012,2]
[356585191,1742735432310,-500.0,0.00012,2]
[356585193,1742735432319,-500.0,0.00012,2]
[356585196,1742735432328,-151.0,0.00012,2]
[356585198,1742735432337,-500.0,0.00012,2]
[356585200,1742735432346,-500.0,0.00012,2]
[356585202,1742735432356,-500.0,0.00012,2]
[356585204,1742735432364,-500.0,0.00012,2]
[356585206,1742735432376,-500.0,0.00012,2]
[356585208,1742735432385,-500.0,0.00012,2]
[356585210,1742735432395,-500.0,0.00012,2]
[356585212,1742735432404,-500.0,0.00012,2]
[356585214,1742735432413,-500.0,0.00012,2]
[356585216,1742735432423,-500.0,0.00012,2]
[356585218,1742735432432,-500.0,0.00012,2]
[356585220,1742735432442,-1281.0,0.00012,2]
[356585222,1742735432451,-153.291426,0.00012,2]
[356585224,1742735432460,-500.0,0.00012,2]
[356585226,1742735432469,-500.0,0.00012,2]
[356585228,1742735432479,-500.0,0.00012,2]
[356585230,1742735432488,-500.0,0.00012,2]
[356585232,1742735432497,-500.0,0.00012,2]
[356585234,1742735432506,-500.0,0.00012,2]
[356585236,1742735432514,-500.0,0.00012,2]
[356585237,1742735432523,-500.0,0.00012,2]
[356585240,1742735432533,-500.0,0.00012,2]
[356585242,1742735432542,-500.0,0.00012,2]
[356585243,1742735432551,-500.0,0.00012,2]
[356585246,1742735432561,-642.0,0.00012,2]
[356585247,1742735432570,-500.0,0.00012,2]
[356585249,1742735432579,-500.0,0.00012,2]
[356585252,1742735432589,-500.0,0.00012,2]
[356585253,1742735432599,-500.0,0.00012,2]
[356585255,1742735432608,-500.0,0.00012,2]
[356585257,1742735432618,-500.0,0.00012,2]
[356585259,1742735432627,-500.0,0.00012,2]
[356585261,1742735432636,-500.0,0.00012,2]
[356585263,1742735432645,-500.0,0.00012,2]
[356585265,1742735432655,-2036.0,0.00012,2]
[356585267,1742735432663,-500.0,0.00012,2]
[356585269,1742735432673,-500.0,0.00012,2]
[356585271,1742735432682,-500.0,0.00012,2]
[356585273,1742735432691,-500.0,0.00012,2]
[356585275,1742735432700,-152.6377,0.00012,2]
[356585277,1742735432709,-500.0,0.00012,2]
[356585279,1742735432718,-500.0,0.00012,2]
[356585281,1742735432728,-500.0,0.00012,2]
[356585297,1742735432862,-500.0,0.00012,2]
[356585299,1742735432872,-500.0,0.00012,2]
[356585301,1742735432881,-500.0,0.00012,2]
[356585303,1742735432891,-500.0,0.00012,2]
[356585305,1742735432901,-500.0,0.00012,2]
[356585307,1742735432911,-500.0,0.00012,2]
[356585309,1742735432920,-500.0,0.00012,2]
[356585310,1742735432930,-500.0,0.00012,2]
[356585312,1742735432941,-500.0,0.00012,2]
[356585314,1742735432950,-500.0,0.00012,2]
[356585315,1742735432959,-500.0,0.00012,2]
[356585317,1742735432968,-500.0,0.00012,2]
[356585318,1742735432981,-500.0,0.00012,2]
[356585320,1742735432991,-500.0,0.00012,2]
[356585322,1742735433000,-500.0,0.00012,2]
[356585323,1742735433010,-500.0,0.00012,2]
[356585325,1742735433019,-500.0,0.00012,2]
[356585327,1742735433028,-500.0,0.00012,2]
[356585328,1742735433038,-500.0,0.00012,2]
[356585330,1742735433048,-500.0,0.00012,2]
[356585332,1742735433059,-500.0,0.00012,2]
[356585334,1742735433068,-500.0,0.00012,2]
[356585335,1742735433077,-500.0,0.00012,2]
[356585337,1742735433086,-500.0,0.00012,2]
[356585339,1742735433096,-500.0,0.00012,2]
[356585341,1742735433105,-500.0,0.00012,2]
[356585343,1742735433115,-500.0,0.00012,2]
[356585344,1742735433124,-500.0,0.00012,2]
[356585346,1742735433134,-500.0,0.00012,2]
[356585348,1742735433143,-500.0,0.00012,2]
[356585349,1742735433154,-500.0,0.00012,2]
[356585351,1742735433163,-500.0,0.00012,2]
[356585353,1742735433175,-500.0,0.00012,2]
[356585355,1742735433185,-151.0,0.00012,2]
[356585357,1742735433195,-500.0,0.00012,2]
[356585358,1742735433204,-500.0,0.00012,2]
[356585360,1742735433214,-500.0,0.00012,2]
[356585362,1742735433224,-500.0,0.00012,2]
[356585364,1742735433233,-500.0,0.00012,2]
[356585365,1742735433243,-500.0,0.00012,2]
[356585367,1742735433252,-500.0,0.00012,2]
[356585369,1742735433262,-500.0,0.00012,2]
[356585371,1742735433272,-500.0,0.00012,2]
[356585372,1742735433281,-500.0,0.00012,2]
[356585374,1742735433291,-500.0,0.00012,2]
[356585376,1742735433300,-500.0,0.00012,2]
[356585377,1742735433310,-500.0,0.00012,2]
[356585379,1742735433319,-500.0,0.00012,2]
[356585381,1742735433329,-500.0,0.00012,2]
[356585382,1742735433338,-151.0,0.00012,2]
[356585384,1742735433348,-151.0,0.00012,2]
[356585386,1742735433359,-500.0,0.00012,2]
[356585388,1742735433369,-500.0,0.00012,2]
[356585389,1742735433379,-500.0,0.00012,2]
[356585391,1742735433388,-500.0,0.00012,2]
[356585393,1742735433398,-500.0,0.00012,2]
[356585395,1742735433407,-500.0,0.00012,2]
[356585397,1742735433416,-500.0,0.00012,2]
[356585399,1742735433426,-500.0,0.00012,2]
[356585400,1742735433435,-500.0,0.00012,2]
[356585402,1742735433445,-500.0,0.00012,2]
[356585404,1742735433454,-1420.0,0.00012,2]
[356585406,1742735433463,-500.0,0.00012,2]
[356585408,1742735433473,-572.0,0.00012,2]
[356585409,1742735433482,-151.0,0.00012,2]
[356585411,1742735433491,-151.0,0.00012,2]
[356585413,1742735433501,-787.0,0.00012,2]
[356585415,1742735433511,-191.23264,0.00012,2]
[356585417,1742735433520,-191.23264,0.00012,2]
[356585419,1742735433530,-191.23264,0.00012,2]
[356585420,1742735433540,-191.23264,0.00012,2]
[356585422,1742735433549,-1273.0,0.00012,2]
[356585424,1742735433559,-153.043347,0.00012,2]
[356585426,1742735433568,-157.601624,0.00012,2]
[356585427,1742735433578,-157.601624,0.00012,2]
[356585429,1742735433588,-157.601624,0.00012,2]
[356585431,1742735433598,-157.601624,0.00012,2]
[356585433,1742735433607,-157.601624,0.00012,2]
[356585434,1742735433617,-157.601624,0.00012,2]
[356585436,1742735433627,-151.0,0.00012,2]
[356585438,1742735433637,-200.74812,0.00012,2]
[356585440,1742735433646,-166.994416,0.00012,2]
[356585442,1742735433656,-151.0,0.00012,2]
[356585443,1742735433665,-151.0,0.00012,2]
[356585445,1742735433674,-152.454868,0.00012,2]
[356585447,1742735433684,-151.0,0.00012,2]
[356585449,1742735433693,-151.0,0.00012,2]
[356585451,1742735433703,-151.0,0.00012,2]
[356585453,1742735433711,-151.0,0.00012,2]
[356585455,1742735433728,-151.0,0.00012,2]
[356585457,1742735433741,-151.0,0.00012,2]
[356585459,1742735433751,-151.0,0.00012,2]
[356585461,1742735433760,-151.0,0.00012,2]
[356585463,1742735433770,-151.0,0.00012,2]
[356585464,1742735433779,-151.0,0.00012,2]
[356585466,1742735433789,-151.0,0.00012,2]
[356585468,1742735433798,-151.0,0.00012,2]
[356585470,1742735433808,-151.0,0.00012,2]
[356585472,1742735433818,-152.972029,0.00012,2]
[356585474,1742735433827,-151.0,0.00012,2]
[356585475,1742735433837,-151.871855,0.00012,2]
[356585477,1742735433846,-151.0,0.00012,2]
[356585479,1742735433856,-151.0,0.00012,2]
[356585481,1742735433866,-165.028424,0.00012,2]
[356585482,1742735433875,-151.0,0.00012,2]
[356585484,1742735433885,-151.0,0.00012,2]
[356585486,1742735433895,-151.0,0.00012,2]
[356585488,1742735433905,-151.0,0.00012,2]
[356585490,1742735433915,-151.0,0.00012,2]
[356585492,1742735433924,-299.452278,0.00012,2]
[356585494,1742735433933,-151.0,0.00012,2]
[356585496,1742735433943,-299.452278,0.00012,2]
[356585497,1742735433952,-151.0,0.00012,2]
[356585499,1742735433962,-299.452278,0.00012,2]
[356585501,1742735433972,-151.0,0.00012,2]
[356585503,1742735433987,-299.452278,0.00012,2]
[356585505,1742735433996,-151.0,0.00012,2]
[356585507,1742735434007,-299.452278,0.00012,2]
[356585509,1742735434017,-151.0,0.00012,2]
[356585510,1742735434027,-151.0,0.00012,2]
[356585512,1742735434037,-151.0,0.00012,2]
[356585514,1742735434047,-151.0,0.00012,2]
[356585515,1742735434058,-151.0,0.00012,2]
[356585517,1742735434067,-299.452278,0.00012,2]
[356585519,1742735434078,-299.452278,0.00012,2]
[356585521,1742735434087,-151.0,0.00012,2]
[356585522,1742735434096,-299.452278,0.00012,2]
[356585524,1742735434106,-299.452278,0.00012,2]
[356585526,1742735434116,-299.452278,0.00012,2]
[356585528,1742735434126,-151.0,0.00012,2]
[356585530,1742735434135,-151.0,0.00012,2]
[356585531,1742735434145,-151.0,0.00012,2]
[356585533,1742735434155,-151.0,0.00012,2]
[356585535,1742735434165,-151.0,0.00012,2]
[356585537,1742735434174,-151.0,0.00012,2]
[356585539,1742735434183,-151.0,0.00012,2]
[356585540,1742735434193,-151.0,0.00012,2]
[356585542,1742735434203,-151.0,0.00012,2]
[356585544,1742735434213,-151.0,0.00012,2]
[356585546,1742735434222,-151.0,0.00012,2]
[356585548,1742735434232,-151.0,0.00012,2]
[356585550,1742735434241,-151.0,0.00012,2]
[356585551,1742735434251,-500.0,0.00012,2]
[356585553,1742735434260,-500.0,0.00012,2]
[356585555,1742735434270,-500.0,0.00012,2]
[356585557,1742735434280,-500.0,0.00012,2]
[356585559,1742735434289,-500.0,0.00012,2]
[356585561,1742735434300,-500.0,0.00012,2]
[356585562,1742735434309,-500.0,0.00012,2]
[356585564,1742735434319,-500.0,0.00012,2]
[356585566,1742735434329,-500.0,0.00012,2]
[356585568,1742735434338,-500.0,0.00012,2]
[356585570,1742735434347,-500.0,0.00012,2]
[356585572,1742735434357,-500.0,0.00012,2]
[356585574,1742735434367,-500.0,0.00012,2]
[356585575,1742735434376,-500.0,0.00012,2]
[356585577,1742735434386,-500.0,0.00012,2]
[356585579,1742735434396,-500.0,0.00012,2]
[356585581,1742735434405,-500.0,0.00012,2]
[356585583,1742735434414,-500.0,0.00012,2]
[356585585,1742735434424,-500.0,0.00012,2]
[356585587,1742735434434,-500.0,0.00012,2]
[356585588,1742735434444,-500.0,0.00012,2]
[356585590,1742735434454,-500.0,0.00012,2]
[356585592,1742735434463,-500.0,0.00012,2]
[356585594,1742735434473,-500.0,0.00012,2]
[356585596,1742735434483,-500.0,0.00012,2]
[356585598,1742735434493,-500.0,0.00012,2]
[356585600,1742735434502,-500.0,0.00012,2]
[356585602,1742735434512,-500.0,0.00012,2]
[356585603,1742735434521,-500.0,0.00012,2]
[356585605,1742735434531,-500.0,0.00012,2]
[356585607,1742735434540,-500.0,0.00012,2]
[356585609,1742735434549,-151.0,0.00012,2]
[356585611,1742735434559,-151.0,0.00012,2]
[356585613,1742735434572,-500.0,0.00012,2]
[356585615,1742735434582,-151.0,0.00012,2]
[356585617,1742735434591,-151.0,0.00012,2]
[356585619,1742735434600,-151.0,0.00012,2]
[356585621,1742735434610,-500.0,0.00012,2]
[356585623,1742735434619,-500.0,0.00012,2]
[356585624,1742735434629,-500.0,0.00012,2]
[356585626,1742735434639,-500.0,0.00012,2]
[356585628,1742735434648,-151.0,0.00012,2]
[356585630,1742735434658,-151.0,0.00012,2]
[356585632,1742735434667,-500.0,0.00012,2]
[356585634,1742735434677,-151.0,0.00012,2]
[356585636,1742735434686,-159.213751,0.00012,2]
[356585638,1742735434695,-500.0,0.00012,2]
[356585640,1742735434705,-500.0,0.00012,2]
[356585642,1742735434714,-500.0,0.00012,2]
[356585643,1742735434724,-500.0,0.00012,2]
[356585645,1742735434733,-500.0,0.00012,2]
[356585647,1742735434742,-500.0,0.00012,2]
[356585649,1742735434752,-278.934351,0.00012,2]
[356585651,1742735434761,-278.934351,0.00012,2]
[356585653,1742735434771,-500.0,0.00012,2]
[356585655,1742735434780,-278.934351,0.00012,2]
[356585657,1742735434789,-278.934351,0.00012,2]
[356585659,1742735434798,-500.0,0.00012,2]
[356585660,1742735434808,-278.934351,0.00012,2]
[356585662,1742735434817,-500.0,0.00012,2]
[356585664,1742735434827,-278.934351,0.00012,2]
[356585666,1742735434836,-500.0,0.00012,2]
[356585668,1742735434845,-278.934351,0.00012,2]
[356585670,1742735434855,-278.934351,0.00012,2]
[356585672,1742735434865,-500.0,0.00012,2]
[356585674,1742735434875,-911.0,0.00012,2]
[356585676,1742735434885,-278.934351,0.00012,2]
[356585677,1742735434894,-278.934351,0.00012,2]
[356585679,1742735434904,-180.53972,0.00012,2]
[356585681,1742735434913,-180.53972,0.00012,2]
[356585683,1742735434922,-500.0,0.00012,2]
[356585685,1742735434931,-180.53972,0.00012,2]
[356585687,1742735434942,-500.0,0.00012,2]
[356585689,1742735434951,-180.53972,0.00012,2]
[356585691,1742735434961,-180.53972,0.00012,2]
[356585693,1742735434971,-500.0,0.00012,2]
[356585695,1742735434984,-500.0,0.00012,2]
[356585697,1742735434994,-151.0,0.00012,2]
[356585699,1742735435003,-151.0,0.00012,2]
[356585700,1742735435012,-500.0,0.00012,2]
[356585702,1742735435022,-180.53972,0.00012,2]
[356585704,1742735435031,-151.0,0.00012,2]
[356585706,1742735435040,-180.53972,0.00012,2]
[356585708,1742735435050,-151.0,0.00012,2]
[356585710,1742735435061,-500.0,0.00012,2]
[356585712,1742735435070,-151.0,0.00012,2]
[356585714,1742735435079,-500.0,0.00012,2]
[356585716,1742735435088,-151.0,0.00012,2]
[356585718,1742735435098,-180.53972,0.00012,2]
[356585719,1742735435109,-180.53972,0.00012,2]
[356585721,1742735435119,-500.0,0.00012,2]
[356585723,1742735435129,-180.53972,0.00012,2]
[356585725,1742735435138,-500.0,0.00012,2]
[356585727,1742735435148,-500.0,0.00012,2]
[356585729,1742735435157,-500.0,0.00012,2]
[356585731,1742735435167,-500.0,0.00012,2]
[356585733,1742735435176,-500.0,0.00012,2]
[356585735,1742735435185,-500.0,0.00012,2]
[356585737,1742735435195,-500.0,0.00012,2]
[356585739,1742735435204,-500.0,0.00012,2]
[356585741,1742735435213,-500.0,0.00012,2]
[356585742,1742735435223,-500.0,0.00012,2]
[356585744,1742735435232,-500.0,0.00012,2]
[356585746,1742735435241,-500.0,0.00012,2]
[356585748,1742735435254,-500.0,0.00012,2]
[356585750,1742735435264,-500.0,0.00012,2]
[356585752,1742735435273,-500.0,0.00012,2]
[356585754,1742735435282,-500.0,0.00012,2]
[356585756,1742735435291,-500.0,0.00012,2]
[356585772,1742735435443,-500.0,0.00012,2]
[356585773,1742735435453,-500.0,0.00012,2]
[356585775,1742735435463,-500.0,0.00012,2]
[356585777,1742735435473,-500.0,0.00012,2]
[356585779,1742735435482,-500.0,0.00012,2]
[356585781,1742735435492,-500.0,0.00012,2]
[356585783,1742735435501,-500.0,0.00012,2]
[356585785,1742735435511,-500.0,0.00012,2]
[356585787,1742735435520,-500.0,0.00012,2]
[356585789,1742735435529,-500.0,0.00012,2]
[356585791,1742735435539,-500.0,0.00012,2]
[356585793,1742735435548,-500.0,0.00012,2]
[356585794,1742735435559,-500.0,0.00012,2]
[356585796,1742735435568,-500.0,0.00012,2]
[356585798,1742735435578,-500.0,0.00012,2]
[356585800,1742735435588,-500.0,0.00012,2]
[356585801,1742735435597,-500.0,0.00012,2]
[356585803,1742735435606,-500.0,0.00012,2]
[356585805,1742735435616,-500.0,0.00012,2]
[356585807,1742735435625,-500.0,0.00012,2]
[356585809,1742735435635,-500.0,0.00012,2]
[356585811,1742735435644,-500.0,0.00012,2]
[356585813,1742735435655,-500.0,0.00012,2]
[356585815,1742735435665,-500.0,0.00012,2]
[356585817,1742735435674,-500.0,0.00012,2]
[356585819,1742735435683,-500.0,0.00012,2]
[356585821,1742735435693,-500.0,0.00012,2]
[356585822,1742735435702,-500.0,0.00012,2]
[356585824,1742735435711,-500.0,0.00012,2]
[356585826,1742735435720,-500.0,0.00012,2]
[356585827,1742735435729,-500.0,0.00012,2]
[356585828,1742735435738,-500.0,0.00012,2]
[356585829,1742735435747,-500.0,0.00012,2]